[Event "*** SCC Grand Prix: Titled Tuesday Blitz"]
[Site "Chess.com"]
[Date "2020.09.08"]
[Round "8"]
[White "chessfrendz"]
[Black "woodpusher52"]
[Result "0-1"]
[WhiteElo "2265"]
[BlackElo "2450"]
[TimeControl "180+1"]
[EndTime "11:37:25 PDT"]
[Termination "woodpusher52 won on time"]

1. e4 {[%clk 0:03:00.9]} 1... e5 {[%clk 0:03:00.1]} 2. Nf3 {[%clk 0:02:58.9]}
2... Nc6 {[%clk 0:02:59.5]} 3. Bb5 {[%clk 0:02:57.9]} 3... Nf6 {[%clk
0:02:59.3]} 4. d3 {[%clk 0:02:56.8]} 4... d6 {[%clk 0:02:55.6]} 5. O-O {[%clk
0:02:55.2]} 5... Be7 {[%clk 0:02:51.5]} 6. c3 {[%clk 0:02:50.5]} 6... O-O {[%clk
0:02:50.9]} 7. h3 {[%clk 0:02:49.7]} 7... a6 {[%clk 0:02:46.6]} 8. Ba4 {[%clk
0:02:48.4]} 8... b5 {[%clk 0:02:45]} 9. Bc2 {[%clk 0:02:47.5]} 9... d5 {[%clk
0:02:44.6]} 10. Qe2 {[%clk 0:02:46.2]} 10... Bc5 {[%clk 0:02:40.7]} 11. Nbd2
{[%clk 0:02:43]} 11... dxe4 {[%clk 0:02:40.4]} 12. dxe4 {[%clk 0:02:41.3]} 12...
Qe7 {[%clk 0:02:39.8]} 13. Re1 {[%clk 0:02:37.1]} 13... Bb7 {[%clk 0:02:12.7]}
14. Nf1 {[%clk 0:02:29.9]} 14... Rfd8 {[%clk 0:02:09.2]} 15. Ng3 {[%clk
0:02:28]} 15... Bc8 {[%clk 0:02:05]} 16. Nh4 {[%clk 0:02:22.7]} 16... Qf8 {[%clk
0:01:54.3]} 17. Nhf5 {[%clk 0:02:18.5]} 17... Ne7 {[%clk 0:01:53.2]} 18. Bg5
{[%clk 0:02:06.6]} 18... Nxf5 {[%clk 0:01:52.9]} 19. Nxf5 {[%clk 0:02:00.4]}
19... Be7 {[%clk 0:01:41.7]} 20. Nxe7+ {[%clk 0:01:52.7]} 20... Qxe7 {[%clk
0:01:42.6]} 21. a4 {[%clk 0:01:51]} 21... c6 {[%clk 0:01:29.6]} 22. Qf3 {[%clk
0:01:35.8]} 22... Be6 {[%clk 0:01:25.7]} 23. Qg3 {[%clk 0:01:32.6]} 23... Bd7
{[%clk 0:01:06.6]} 24. Rad1 {[%clk 0:01:12.3]} 24... Be8 {[%clk 0:01:01.5]} 25.
Qh4 {[%clk 0:00:58.9]} 25... h6 {[%clk 0:00:54.6]} 26. Bxf6 {[%clk 0:00:52.9]}
26... Qxf6 {[%clk 0:00:54.8]} 27. Qxf6 {[%clk 0:00:52.4]} 27... gxf6 {[%clk
0:00:55.7]} 28. g3 {[%clk 0:00:38.2]} 28... Kf8 {[%clk 0:00:55.4]} 29. Kg2
{[%clk 0:00:37.2]} 29... Ke7 {[%clk 0:00:55.1]} 30. Kf3 {[%clk 0:00:36.7]} 30...
Bd7 {[%clk 0:00:55.2]} 31. h4 {[%clk 0:00:35.9]} 31... Be6 {[%clk 0:00:53.2]}
32. Ke3 {[%clk 0:00:35]} 32... Bg4 {[%clk 0:00:50.8]} 33. f3 {[%clk 0:00:34]}
33... Be6 {[%clk 0:00:50.9]} 34. g4 {[%clk 0:00:33]} 34... Rg8 {[%clk 0:00:49]}
35. axb5 {[%clk 0:00:26.5]} 35... axb5 {[%clk 0:00:49.9]} 36. Ra1 {[%clk
0:00:26]} 36... h5 {[%clk 0:00:42.7]} 37. gxh5 {[%clk 0:00:23]} 37... Rh8 {[%clk
0:00:39.1]} 38. Rxa8 {[%clk 0:00:21.2]} 38... Rxa8 {[%clk 0:00:40]} 39. b4
{[%clk 0:00:19.8]} 39... Ra2 {[%clk 0:00:32.1]} 40. Re2 {[%clk 0:00:19.1]} 40...
Ra3 {[%clk 0:00:22.9]} 41. Kd2 {[%clk 0:00:17.8]} 41... Ra8 {[%clk 0:00:22.6]}
42. f4 {[%clk 0:00:14.7]} 42... exf4 {[%clk 0:00:16.9]} 43. Rf2 {[%clk
0:00:13.9]} 43... Rd8+ {[%clk 0:00:16.4]} 44. Kc1 {[%clk 0:00:13.2]} 44... Rh8
{[%clk 0:00:15.6]} 45. Bd1 {[%clk 0:00:13]} 45... Kd6 {[%clk 0:00:12]} 46. Rxf4
{[%clk 0:00:13.3]} 46... Ke5 {[%clk 0:00:12.5]} 47. Rf2 {[%clk 0:00:11.5]} 47...
Ra8 {[%clk 0:00:08.8]} 48. Bc2 {[%clk 0:00:06.2]} 48... Ra1+ {[%clk 0:00:08.8]}
49. Bb1 {[%clk 0:00:05.7]} 49... Ra8 {[%clk 0:00:09.7]} 50. Bc2 {[%clk
0:00:03.5]} 50... Rh8 {[%clk 0:00:10.1]} 51. Bd1 {[%clk 0:00:02.5]} 51... c5
{[%clk 0:00:09.3]} 52. bxc5 {[%clk 0:00:01.7]} 52... Rc8 {[%clk 0:00:10.2]} 0-1

[Event "*** SCC Grand Prix: Titled Tuesday Blitz"]
[Site "Chess.com"]
[Date "2020.09.08"]
[Round "8"]
[White "Gabrielian_Artur"]
[Black "GM_Levan_Pantsulaia"]
[Result "1-0"]
[WhiteElo "2730"]
[BlackElo "2846"]
[TimeControl "180+1"]
[EndTime "11:37:27 PDT"]
[Termination "Gabrielian_Artur won on time"]

1. e4 {[%clk 0:03:00.9]} 1... c6 {[%clk 0:02:58.2]} 2. d4 {[%clk 0:03:00.4]}
2... d5 {[%clk 0:02:59]} 3. Nd2 {[%clk 0:03:00.8]} 3... dxe4 {[%clk 0:02:59.2]}
4. Nxe4 {[%clk 0:03:01.2]} 4... Bf5 {[%clk 0:02:59.9]} 5. Ng3 {[%clk 0:03:01.2]}
5... Bg6 {[%clk 0:03:00.4]} 6. c3 {[%clk 0:03:01.8]} 6... e6 {[%clk 0:02:58.1]}
7. Nh3 {[%clk 0:03:01.8]} 7... Bd6 {[%clk 0:02:54.9]} 8. Nf4 {[%clk 0:03:01.7]}
8... Nf6 {[%clk 0:02:54.1]} 9. h4 {[%clk 0:03:01.5]} 9... Qc7 {[%clk 0:02:49.8]}
10. Qf3 {[%clk 0:03:01.2]} 10... Nbd7 {[%clk 0:02:47.4]} 11. h5 {[%clk
0:03:01.3]} 11... Bc2 {[%clk 0:02:47.6]} 12. h6 {[%clk 0:03:01.5]} 12... g6
{[%clk 0:02:36.3]} 13. Bd3 {[%clk 0:03:01.6]} 13... Bxd3 {[%clk 0:02:35]} 14.
Nxd3 {[%clk 0:03:01.8]} 14... Qa5 {[%clk 0:02:15]} 15. Bf4 {[%clk 0:02:57.1]}
15... Be7 {[%clk 0:01:51.1]} 16. O-O {[%clk 0:02:36.3]} 16... Qd5 {[%clk
0:01:48.8]} 17. Qe2 {[%clk 0:02:34.4]} 17... Nh5 {[%clk 0:01:29]} 18. Nxh5
{[%clk 0:01:57.9]} 18... Qxh5 {[%clk 0:01:29.9]} 19. Qxh5 {[%clk 0:01:48.1]}
19... gxh5 {[%clk 0:01:30.8]} 20. f3 {[%clk 0:01:27.4]} 20... h4 {[%clk
0:01:27.8]} 21. Kf2 {[%clk 0:01:20.2]} 21... Rg8 {[%clk 0:01:27]} 22. Rh1 {[%clk
0:01:14.9]} 22... Rg6 {[%clk 0:01:19.7]} 23. Rae1 {[%clk 0:01:01]} 23... Rd8
{[%clk 0:01:07.6]} 24. Kf1 {[%clk 0:00:53.6]} 24... Rc8 {[%clk 0:00:50.4]} 25.
Be3 {[%clk 0:00:50.9]} 25... a5 {[%clk 0:00:35.1]} 26. Nf4 {[%clk 0:00:31.4]}
26... Rxh6 {[%clk 0:00:34.3]} 27. Nd5 {[%clk 0:00:29.1]} 27... Rh5 {[%clk
0:00:26.1]} 28. Nxe7 {[%clk 0:00:27]} 28... Kxe7 {[%clk 0:00:27]} 29. Bf2 {[%clk
0:00:27.1]} 29... h3 {[%clk 0:00:27.4]} 30. g4 {[%clk 0:00:25.6]} 30... Rb5
{[%clk 0:00:23.6]} 31. Re2 {[%clk 0:00:22.4]} 31... Nb6 {[%clk 0:00:20]} 32. b3
{[%clk 0:00:19.2]} 32... a4 {[%clk 0:00:17.7]} 33. c4 {[%clk 0:00:17.7]} 33...
Ra5 {[%clk 0:00:14.2]} 34. Rxh3 {[%clk 0:00:16.1]} 34... axb3 {[%clk 0:00:13.3]}
35. axb3 {[%clk 0:00:17]} 35... Ra3 {[%clk 0:00:09.1]} 36. d5 {[%clk 0:00:16.5]}
36... Nd7 {[%clk 0:00:09.2]} 37. dxe6 {[%clk 0:00:16.6]} 37... Ra1+ {[%clk
0:00:03.7]} 38. Kg2 {[%clk 0:00:16.3]} 38... Nf8 {[%clk 0:00:03.2]} 39. Bc5+
{[%clk 0:00:15]} 39... Ke8 {[%clk 0:00:02.5]} 40. e7 {[%clk 0:00:11.6]} 40...
Ng6 {[%clk 0:00:02.3]} 41. Re4 {[%clk 0:00:10.7]} 41... Kd7 {[%clk 0:00:02]} 42.
Rxh7 {[%clk 0:00:09.8]} 42... Re8 {[%clk 0:00:02.3]} 43. Rxf7 {[%clk 0:00:08.6]}
43... Rb1 {[%clk 0:00:02.8]} 44. b4 {[%clk 0:00:08.2]} 44... Rb3 {[%clk
0:00:02.3]} 45. Rf6 {[%clk 0:00:04.9]} 1-0

[Event "*** SCC Grand Prix: Titled Tuesday Blitz"]
[Site "Chess.com"]
[Date "2020.09.08"]
[Round "8"]
[White "Rud_Makarian"]
[Black "manitodeplomo"]
[Result "1-0"]
[WhiteElo "2762"]
[BlackElo "2577"]
[TimeControl "180+1"]
[EndTime "11:37:28 PDT"]
[Termination "Rud_Makarian won on time"]

1. d4 {[%clk 0:02:59.9]} 1... g6 {[%clk 0:02:57.2]} 2. Nf3 {[%clk 0:02:55.8]}
2... Bg7 {[%clk 0:02:58.1]} 3. h4 {[%clk 0:02:54.7]} 3... h5 {[%clk 0:02:52.3]}
4. e4 {[%clk 0:02:54]} 4... c5 {[%clk 0:02:52.4]} 5. dxc5 {[%clk 0:02:53.7]}
5... Nf6 {[%clk 0:02:51.4]} 6. Nc3 {[%clk 0:02:52.3]} 6... Qa5 {[%clk
0:02:51.3]} 7. Bd3 {[%clk 0:02:42.4]} 7... Qxc5 {[%clk 0:02:49.4]} 8. Be3 {[%clk
0:02:41.2]} 8... Qa5 {[%clk 0:02:48.8]} 9. Qd2 {[%clk 0:02:40.2]} 9... Nc6
{[%clk 0:02:45.5]} 10. a3 {[%clk 0:02:36.4]} 10... d6 {[%clk 0:02:45]} 11. O-O-O
{[%clk 0:02:30]} 11... Ng4 {[%clk 0:02:43.2]} 12. Nd5 {[%clk 0:02:28.6]} 12...
Nxe3 {[%clk 0:02:34.1]} 13. Qxa5 {[%clk 0:02:23]} 13... Nxa5 {[%clk 0:02:35]}
14. Nxe3 {[%clk 0:02:22.9]} 14... Nc6 {[%clk 0:02:28.1]} 15. Nd5 {[%clk
0:02:20.7]} 15... Rb8 {[%clk 0:02:23.7]} 16. Nc7+ {[%clk 0:02:15.1]} 16... Kd7
{[%clk 0:02:17.1]} 17. Nd5 {[%clk 0:02:14.5]} 17... e6 {[%clk 0:02:16.8]} 18.
Ne3 {[%clk 0:02:13]} 18... Ke7 {[%clk 0:02:15.9]} 19. Rhe1 {[%clk 0:02:08.4]}
19... Rd8 {[%clk 0:02:14.9]} 20. Kb1 {[%clk 0:02:06.2]} 20... b5 {[%clk
0:02:12.9]} 21. Nf1 {[%clk 0:01:14.4]} 21... b4 {[%clk 0:02:09.2]} 22. a4 {[%clk
0:01:14.4]} 22... b3 {[%clk 0:02:09.1]} 23. c3 {[%clk 0:01:14.4]} 23... Bd7
{[%clk 0:02:07]} 24. Bb5 {[%clk 0:01:11.8]} 24... a6 {[%clk 0:01:44.3]} 25. Bxa6
{[%clk 0:01:11.3]} 25... Na5 {[%clk 0:01:44.3]} 26. Bb5 {[%clk 0:01:09.2]} 26...
Bxb5 {[%clk 0:01:43.8]} 27. axb5 {[%clk 0:01:10.1]} 27... Rxb5 {[%clk
0:01:43.7]} 28. Ne3 {[%clk 0:01:07]} 28... Ra8 {[%clk 0:01:39.6]} 29. Nd4 {[%clk
0:01:01.2]} 29... Rb6 {[%clk 0:01:38.8]} 30. g3 {[%clk 0:00:57.6]} 30... Rba6
{[%clk 0:01:27.9]} 31. Kc1 {[%clk 0:00:56.3]} 31... Nc6 {[%clk 0:01:00.8]} 32.
Nxb3 {[%clk 0:00:37.4]} 32... Rb8 {[%clk 0:00:57.8]} 33. Nd2 {[%clk 0:00:35.9]}
33... Ne5 {[%clk 0:00:37.5]} 34. Kc2 {[%clk 0:00:32.5]} 34... Rc8 {[%clk
0:00:22.4]} 35. f4 {[%clk 0:00:29.6]} 35... Nc6 {[%clk 0:00:20.8]} 36. Ra1
{[%clk 0:00:23.8]} 36... Nb4+ {[%clk 0:00:19.9]} 37. Kb3 {[%clk 0:00:21.3]}
37... Rxa1 {[%clk 0:00:17.3]} 38. Rxa1 {[%clk 0:00:22.2]} 38... Nd3 {[%clk
0:00:17.9]} 39. Ra7+ {[%clk 0:00:18.5]} 39... Kf8 {[%clk 0:00:17.8]} 40. Ndc4
{[%clk 0:00:16.6]} 40... Nc5+ {[%clk 0:00:13]} 41. Kc2 {[%clk 0:00:16.3]} 41...
Nxe4 {[%clk 0:00:13.9]} 42. Kd3 {[%clk 0:00:13.7]} 42... d5 {[%clk 0:00:13.1]}
43. Ne5 {[%clk 0:00:13.6]} 43... Bxe5 {[%clk 0:00:11.4]} 44. fxe5 {[%clk
0:00:14.5]} 44... Nxg3 {[%clk 0:00:11.9]} 45. b4 {[%clk 0:00:14.8]} 45... Ne4
{[%clk 0:00:10.6]} 46. c4 {[%clk 0:00:15.1]} 46... Nf2+ {[%clk 0:00:06.8]} 47.
Kd4 {[%clk 0:00:15.3]} 47... dxc4 {[%clk 0:00:05.4]} 48. Nxc4 {[%clk 0:00:16.2]}
48... Rd8+ {[%clk 0:00:01.9]} 49. Nd6 {[%clk 0:00:16.5]} 49... f5 {[%clk
0:00:01.7]} 50. b5 {[%clk 0:00:16.6]} 50... g5 {[%clk 0:00:01.8]} 51. hxg5
{[%clk 0:00:16.5]} 51... h4 {[%clk 0:00:02.1]} 52. g6 {[%clk 0:00:17]} 52... Kg8
{[%clk 0:00:02.1]} 53. b6 {[%clk 0:00:17.2]} 53... h3 {[%clk 0:00:02]} 54. Rh7
{[%clk 0:00:16.9]} 1-0

[Event "*** SCC Grand Prix: Titled Tuesday Blitz"]
[Site "Chess.com"]
[Date "2020.09.08"]
[Round "8"]
[White "vovachesss"]
[Black "elohunter1999"]
[Result "1-0"]
[WhiteElo "2674"]
[BlackElo "2464"]
[TimeControl "180+1"]
[EndTime "11:37:29 PDT"]
[Termination "vovachesss won on time"]

1. e4 {[%clk 0:03:00.9]} 1... e5 {[%clk 0:02:59.5]} 2. Nf3 {[%clk 0:02:59.4]}
2... Nc6 {[%clk 0:02:59.3]} 3. Nc3 {[%clk 0:02:59.1]} 3... Nf6 {[%clk
0:02:58.9]} 4. g3 {[%clk 0:02:59]} 4... d5 {[%clk 0:02:57.1]} 5. exd5 {[%clk
0:02:59.9]} 5... Nxd5 {[%clk 0:02:58]} 6. Bg2 {[%clk 0:03:00.6]} 6... Nxc3
{[%clk 0:02:58.2]} 7. bxc3 {[%clk 0:03:01.2]} 7... Bc5 {[%clk 0:02:58.7]} 8. O-O
{[%clk 0:03:01.3]} 8... O-O {[%clk 0:02:59.2]} 9. Re1 {[%clk 0:02:59.2]} 9...
Qf6 {[%clk 0:02:59.1]} 10. Qe2 {[%clk 0:02:47.3]} 10... Bb6 {[%clk 0:02:29.8]}
11. d3 {[%clk 0:02:24.8]} 11... h6 {[%clk 0:02:28.5]} 12. a4 {[%clk 0:02:21.5]}
12... Bg4 {[%clk 0:02:25]} 13. Qe4 {[%clk 0:01:37.6]} 13... Bf5 {[%clk
0:02:12.5]} 14. Qc4 {[%clk 0:01:30.8]} 14... Rfe8 {[%clk 0:02:09.8]} 15. Be3
{[%clk 0:01:28.4]} 15... e4 {[%clk 0:02:04.5]} 16. Nh4 {[%clk 0:01:03.9]} 16...
exd3 {[%clk 0:00:54.5]} 17. Nxf5 {[%clk 0:01:00.3]} 17... Qxf5 {[%clk
0:00:50.6]} 18. Bxb6 {[%clk 0:00:54]} 18... Rxe1+ {[%clk 0:00:49.9]} 19. Rxe1
{[%clk 0:00:53.8]} 19... d2 {[%clk 0:00:50.2]} 20. Rd1 {[%clk 0:00:29.3]} 20...
Qxc2 {[%clk 0:00:43.4]} 21. Qe2 {[%clk 0:00:15.8]} 21... axb6 {[%clk 0:00:42.6]}
22. Rxd2 {[%clk 0:00:16.3]} 22... Qxc3 {[%clk 0:00:31.4]} 23. Rd7 {[%clk
0:00:16.5]} 23... Nd4 {[%clk 0:00:19.3]} 24. Qa2 {[%clk 0:00:10.6]} 24... Qe1+
{[%clk 0:00:17.2]} 25. Bf1 {[%clk 0:00:10]} 25... Qe6 {[%clk 0:00:14.9]} 26.
Qxe6 {[%clk 0:00:06.3]} 26... Nxe6 {[%clk 0:00:15.8]} 27. Bc4 {[%clk 0:00:06.3]}
27... Rxa4 {[%clk 0:00:14.1]} 28. Bxe6 {[%clk 0:00:06.7]} 28... fxe6 {[%clk
0:00:14.1]} 29. Rxc7 {[%clk 0:00:07.6]} 29... Ra7 {[%clk 0:00:11.4]} 30. Kf1
{[%clk 0:00:06.7]} 30... b5 {[%clk 0:00:11.6]} 31. Ke2 {[%clk 0:00:06.7]} 31...
b4 {[%clk 0:00:11.4]} 32. Rc4 {[%clk 0:00:05.5]} 32... Ra2+ {[%clk 0:00:10.7]}
33. Kf3 {[%clk 0:00:05.6]} 33... Rb2 {[%clk 0:00:08.9]} 34. Rc7 {[%clk
0:00:05.5]} 34... b3 {[%clk 0:00:06.5]} 35. Rxb7 {[%clk 0:00:06.4]} 35... Rb1
{[%clk 0:00:06]} 36. h4 {[%clk 0:00:06.2]} 36... h5 {[%clk 0:00:05.6]} 37. Kf4
{[%clk 0:00:05.4]} 37... Rf1 {[%clk 0:00:05.5]} 38. Kg5 {[%clk 0:00:03.4]} 38...
Rxf2 {[%clk 0:00:04.3]} 39. Kxh5 {[%clk 0:00:04]} 39... b2 {[%clk 0:00:02.6]}
40. g4 {[%clk 0:00:02.8]} 40... Kh7 {[%clk 0:00:02.3]} 41. g5 {[%clk 0:00:02.8]}
41... e5 {[%clk 0:00:02]} 42. g6+ {[%clk 0:00:02.6]} 42... Kg8 {[%clk
0:00:02.6]} 43. Rb8+ {[%clk 0:00:02.8]} 43... Rf8 {[%clk 0:00:03.2]} 44. Rxb2
{[%clk 0:00:03.7]} 44... Rf5+ {[%clk 0:00:03]} 45. Kg4 {[%clk 0:00:04]} 45...
Rf6 {[%clk 0:00:03.6]} 46. Kg5 {[%clk 0:00:04.5]} 46... Kf8 {[%clk 0:00:03.7]}
47. Rb8+ {[%clk 0:00:04.7]} 47... Ke7 {[%clk 0:00:04.2]} 48. Rb7+ {[%clk
0:00:05.2]} 48... Ke6 {[%clk 0:00:04.8]} 49. Rxg7 {[%clk 0:00:05.2]} 49... Rf5+
{[%clk 0:00:05.4]} 50. Kg4 {[%clk 0:00:05.4]} 50... Rf1 {[%clk 0:00:03.7]} 51.
Kg5 {[%clk 0:00:04.8]} 51... Rg1+ {[%clk 0:00:03]} 52. Kh6 {[%clk 0:00:05.1]}
52... e4 {[%clk 0:00:03.6]} 53. Rg8 {[%clk 0:00:04.7]} 53... e3 {[%clk 0:00:02]}
54. Re8+ {[%clk 0:00:04.5]} 54... Kf6 {[%clk 0:00:02.6]} 55. h5 {[%clk
0:00:04.8]} 55... Rg3 {[%clk 0:00:02.5]} 56. Kh7 {[%clk 0:00:04.8]} 1-0

[Event "*** SCC Grand Prix: Titled Tuesday Blitz"]
[Site "Chess.com"]
[Date "2020.09.08"]
[Round "8"]
[White "ShapkinAnatoliy"]
[Black "Ave_Mariia"]
[Result "0-1"]
[WhiteElo "2653"]
[BlackElo "2479"]
[TimeControl "180+1"]
[EndTime "11:37:29 PDT"]
[Termination "Ave_Mariia won on time"]

1. d4 {[%clk 0:03:00.9]} 1... Nf6 {[%clk 0:02:59.7]} 2. c4 {[%clk 0:03:00.7]}
2... e6 {[%clk 0:03:00.1]} 3. g3 {[%clk 0:03:00.2]} 3... d5 {[%clk 0:02:59.6]}
4. Nf3 {[%clk 0:03:00]} 4... dxc4 {[%clk 0:02:59.6]} 5. Bg2 {[%clk 0:03:00.2]}
5... a6 {[%clk 0:02:59.3]} 6. O-O {[%clk 0:02:59.7]} 6... Nc6 {[%clk 0:02:59.6]}
7. Bg5 {[%clk 0:02:58.1]} 7... Be7 {[%clk 0:02:59.1]} 8. e3 {[%clk 0:02:57.4]}
8... Bd7 {[%clk 0:02:56.8]} 9. Nbd2 {[%clk 0:02:51.4]} 9... b5 {[%clk
0:02:37.4]} 10. Qc1 {[%clk 0:02:45.8]} 10... O-O {[%clk 0:02:35.3]} 11. b3
{[%clk 0:02:44.7]} 11... cxb3 {[%clk 0:02:33.9]} 12. axb3 {[%clk 0:02:42.5]}
12... Nd5 {[%clk 0:02:31.4]} 13. Bxe7 {[%clk 0:02:41.5]} 13... Qxe7 {[%clk
0:02:31.5]} 14. Ne4 {[%clk 0:02:41.6]} 14... Rfd8 {[%clk 0:02:22.2]} 15. Nc5
{[%clk 0:02:32.6]} 15... a5 {[%clk 0:02:22.5]} 16. Rd1 {[%clk 0:02:29.5]} 16...
Ncb4 {[%clk 0:02:17.9]} 17. Ne5 {[%clk 0:02:27.3]} 17... Be8 {[%clk 0:02:14.6]}
18. Qd2 {[%clk 0:01:57.5]} 18... c6 {[%clk 0:02:09.3]} 19. Rdc1 {[%clk
0:01:52.1]} 19... f6 {[%clk 0:02:06.2]} 20. Ned3 {[%clk 0:01:25.2]} 20... Nxd3
{[%clk 0:02:04.4]} 21. Qxd3 {[%clk 0:01:26.1]} 21... Bg6 {[%clk 0:01:47.2]} 22.
Qd2 {[%clk 0:01:25.8]} 22... Nb4 {[%clk 0:01:46.5]} 23. Qc3 {[%clk 0:01:00.8]}
23... e5 {[%clk 0:01:30.1]} 24. dxe5 {[%clk 0:00:50.1]} 24... fxe5 {[%clk
0:01:31]} 25. h4 {[%clk 0:00:26.9]} 25... Kh8 {[%clk 0:01:26.7]} 26. Bf3 {[%clk
0:00:23.8]} 26... e4 {[%clk 0:01:24.5]} 27. Bg2 {[%clk 0:00:21.5]} 27... Nd3
{[%clk 0:01:13.8]} 28. Nxd3 {[%clk 0:00:20.4]} 28... Rxd3 {[%clk 0:01:13.3]} 29.
Qxc6 {[%clk 0:00:19.9]} 29... Rf8 {[%clk 0:01:08.7]} 30. Qxb5 {[%clk 0:00:15]}
30... Qf7 {[%clk 0:01:01.4]} 31. Ra2 {[%clk 0:00:12.6]} 31... Rxb3 {[%clk
0:00:59.4]} 32. Qc4 {[%clk 0:00:12.7]} 32... Rb1 {[%clk 0:00:56.8]} 33. Rc2
{[%clk 0:00:08.4]} 33... Rxc1+ {[%clk 0:00:55.2]} 34. Rxc1 {[%clk 0:00:08.7]}
34... Qxf2+ {[%clk 0:00:55.8]} 35. Kh2 {[%clk 0:00:08.1]} 35... Qxe3 {[%clk
0:00:50.4]} 36. Rc2 {[%clk 0:00:05.4]} 36... h5 {[%clk 0:00:45.9]} 37. Qc6
{[%clk 0:00:02.4]} 37... Kh7 {[%clk 0:00:42]} 38. Rc5 {[%clk 0:00:02.4]} 38...
Rf2 {[%clk 0:00:39.4]} 39. Rg5 {[%clk 0:00:02.3]} 39... Rf6 {[%clk 0:00:30.3]}
40. Qc5 {[%clk 0:00:01.8]} 40... Qxc5 {[%clk 0:00:25.8]} 41. Rxc5 {[%clk
0:00:02.7]} 41... a4 {[%clk 0:00:21.5]} 42. Ra5 {[%clk 0:00:02.3]} 42... e3
{[%clk 0:00:20.1]} 43. Rxa4 {[%clk 0:00:02.4]} 43... e2 {[%clk 0:00:18.2]} 44.
Ra1 {[%clk 0:00:03.3]} 44... Bd3 {[%clk 0:00:15.1]} 45. Kg1 {[%clk 0:00:03.6]}
45... Bb5 {[%clk 0:00:11.1]} 46. Re1 {[%clk 0:00:03.5]} 46... Kg6 {[%clk
0:00:10.4]} 47. Be4+ {[%clk 0:00:03.2]} 47... Kf7 {[%clk 0:00:10.1]} 48. Bd5+
{[%clk 0:00:01.9]} 48... Ke7 {[%clk 0:00:09.7]} 49. Bg2 {[%clk 0:00:02.1]} 49...
Kd6 {[%clk 0:00:09.7]} 50. Bh3 {[%clk 0:00:02.3]} 50... Kc5 {[%clk 0:00:09.8]}
51. Kh2 {[%clk 0:00:02.1]} 51... Kd4 {[%clk 0:00:10]} 52. Rc1 {[%clk 0:00:01.7]}
52... Ke3 {[%clk 0:00:09.8]} 53. Rb1 {[%clk 0:00:01.6]} 53... Bd3 {[%clk
0:00:08.7]} 54. Ra1 {[%clk 0:00:01.4]} 54... Kd2 {[%clk 0:00:08.7]} 55. Ra2+
{[%clk 0:00:01.3]} 55... Bc2 {[%clk 0:00:09]} 56. Ra1 {[%clk 0:00:01.3]} 56...
e1=Q {[%clk 0:00:09]} 0-1

[Event "*** SCC Grand Prix: Titled Tuesday Blitz"]
[Site "Chess.com"]
[Date "2020.09.08"]
[Round "8"]
[White "beto-betun"]
[Black "VladaSviridova"]
[Result "1-0"]
[WhiteElo "2148"]
[BlackElo "2267"]
[TimeControl "180+1"]
[EndTime "11:37:29 PDT"]
[Termination "beto-betun won on time"]

1. d4 {[%clk 0:03:00.9]} 1... d5 {[%clk 0:02:59.9]} 2. c4 {[%clk 0:02:58.7]}
2... c6 {[%clk 0:03:00]} 3. Nf3 {[%clk 0:02:57.8]} 3... Nf6 {[%clk 0:03:00.1]}
4. Nc3 {[%clk 0:02:57.5]} 4... dxc4 {[%clk 0:02:59.4]} 5. a4 {[%clk 0:02:56.3]}
5... Bf5 {[%clk 0:02:59.3]} 6. e3 {[%clk 0:02:53.8]} 6... e6 {[%clk 0:02:59.1]}
7. Bxc4 {[%clk 0:02:53.5]} 7... Bb4 {[%clk 0:02:59.2]} 8. O-O {[%clk 0:02:52]}
8... O-O {[%clk 0:02:59.4]} 9. Na2 {[%clk 0:02:26.9]} 9... Bd6 {[%clk
0:02:53.9]} 10. b3 {[%clk 0:02:14.7]} 10... Nbd7 {[%clk 0:02:53.2]} 11. Bb2
{[%clk 0:02:12.3]} 11... Nd5 {[%clk 0:02:35.3]} 12. Nc3 {[%clk 0:02:05.8]} 12...
Nxc3 {[%clk 0:02:12.9]} 13. Bxc3 {[%clk 0:02:05.6]} 13... Be4 {[%clk 0:02:12.6]}
14. Nd2 {[%clk 0:02:01.4]} 14... Bd5 {[%clk 0:01:57.8]} 15. Bd3 {[%clk
0:01:53.2]} 15... Qh4 {[%clk 0:01:38.6]} 16. g3 {[%clk 0:01:37.9]} 16... Qf6
{[%clk 0:00:53.2]} 17. Be4 {[%clk 0:01:33.7]} 17... Bxe4 {[%clk 0:00:51.8]} 18.
Nxe4 {[%clk 0:01:34.2]} 18... Qe7 {[%clk 0:00:51.8]} 19. Nxd6 {[%clk 0:01:34]}
19... Qxd6 {[%clk 0:00:52]} 20. Qd2 {[%clk 0:01:33.8]} 20... e5 {[%clk
0:00:49.2]} 21. Rad1 {[%clk 0:01:29.7]} 21... exd4 {[%clk 0:00:48.4]} 22. Bxd4
{[%clk 0:01:29.9]} 22... c5 {[%clk 0:00:47.7]} 23. Bc3 {[%clk 0:01:25]} 23...
Qxd2 {[%clk 0:00:47.4]} 24. Rxd2 {[%clk 0:01:25.9]} 24... Nb6 {[%clk 0:00:44.5]}
25. Rfd1 {[%clk 0:01:23.4]} 25... Rac8 {[%clk 0:00:40.7]} 26. a5 {[%clk
0:01:20]} 26... Na8 {[%clk 0:00:40.6]} 27. Rd7 {[%clk 0:01:16.2]} 27... Nc7
{[%clk 0:00:34.7]} 28. Be5 {[%clk 0:01:06.7]} 28... Na6 {[%clk 0:00:31]} 29.
Rxb7 {[%clk 0:01:04.2]} 29... Rfe8 {[%clk 0:00:26.5]} 30. f4 {[%clk 0:00:58.9]}
30... Nb4 {[%clk 0:00:23.8]} 31. Rdd7 {[%clk 0:00:56.6]} 31... Nc6 {[%clk
0:00:19]} 32. Rxf7 {[%clk 0:00:53.3]} 32... Nxe5 {[%clk 0:00:18.9]} 33. Rxg7+
{[%clk 0:00:53.1]} 33... Kh8 {[%clk 0:00:18.6]} 34. Rxh7+ {[%clk 0:00:53.1]}
34... Kg8 {[%clk 0:00:18.8]} 35. fxe5 {[%clk 0:00:51.3]} 35... Rxe5 {[%clk
0:00:16.5]} 36. Rbg7+ {[%clk 0:00:49.9]} 36... Kf8 {[%clk 0:00:16.7]} 37. Rxa7
{[%clk 0:00:49.4]} 37... Kg8 {[%clk 0:00:16.7]} 38. Rhg7+ {[%clk 0:00:48.6]}
38... Kh8 {[%clk 0:00:16.3]} 39. Rge7 {[%clk 0:00:47.7]} 39... Rxe7 {[%clk
0:00:14.1]} 40. Rxe7 {[%clk 0:00:48.6]} 40... Ra8 {[%clk 0:00:14.4]} 41. e4
{[%clk 0:00:39]} 41... Rxa5 {[%clk 0:00:14.3]} 42. e5 {[%clk 0:00:38.1]} 42...
Ra3 {[%clk 0:00:14.3]} 43. Rc7 {[%clk 0:00:37.6]} 43... Rxb3 {[%clk 0:00:14.2]}
44. Rxc5 {[%clk 0:00:37.8]} 44... Kg7 {[%clk 0:00:13.8]} 45. Kg2 {[%clk
0:00:35.7]} 45... Re3 {[%clk 0:00:13.6]} 46. Kf2 {[%clk 0:00:34.5]} 46... Re4
{[%clk 0:00:12.9]} 47. Kf3 {[%clk 0:00:33.8]} 47... Re1 {[%clk 0:00:13]} 48. Kf4
{[%clk 0:00:29.2]} 48... Kf7 {[%clk 0:00:13.2]} 49. h4 {[%clk 0:00:26.5]} 49...
Ke6 {[%clk 0:00:12.7]} 50. Rc6+ {[%clk 0:00:26.2]} 50... Kf7 {[%clk 0:00:11.8]}
51. Rf6+ {[%clk 0:00:25.6]} 51... Ke7 {[%clk 0:00:09.5]} 52. g4 {[%clk
0:00:22.2]} 52... Rh1 {[%clk 0:00:08.4]} 53. h5 {[%clk 0:00:21.8]} 53... Rh2
{[%clk 0:00:05.6]} 54. Kg5 {[%clk 0:00:20.5]} 54... Re2 {[%clk 0:00:04.9]} 55.
Rf5 {[%clk 0:00:20.5]} 55... Rh2 {[%clk 0:00:03.9]} 56. h6 {[%clk 0:00:20.6]}
56... Ke6 {[%clk 0:00:04.2]} 57. Kg6 {[%clk 0:00:19.2]} 57... Rh4 {[%clk
0:00:03.2]} 58. g5 {[%clk 0:00:17.8]} 58... Rh1 {[%clk 0:00:03.1]} 59. h7 {[%clk
0:00:15]} 59... Rh2 {[%clk 0:00:02.2]} 60. Rf6+ {[%clk 0:00:14.8]} 60... Kxe5
{[%clk 0:00:02.2]} 61. Kg7 {[%clk 0:00:15]} 1-0